[Event "5th Thessaloniki SKG Open-B 2024"]
[Site "Thessaloniki"]
[Date "2024.08.10"]
[Round "6.4"]
[White "Danis, Hrisovalantis"]
[Black "Gunes, Eylul"]
[Result "1/2-1/2"]
[ECO "D36"]
[WhiteElo "1983"]
[BlackElo "1695"]
[Annotator "RC"]
[PlyCount "126"]
[EventDate "2024.08.05"]
[EventType "swiss"]
[EventCountry "GRE"]
[SourceTitle "playchess.com"]
[Source "ChessBase"]
[SourceQuality "1"]
[TimeControl "40/5400+30:1800+30"]

1. d4 {[%emt 0:04:24]} d5 {[%emt 0:00:05]} 2. c4 {[%emt 0:01:14]} e6 {[%emt 0:00:06]} 3. Nc3 {[%emt 0:00:06]} Nf6 {[%emt 0:00:07]} 4. cxd5 {[%emt 0:00:06]} exd5 {[%emt 0:00:08]} 5. Bg5 {[%emt 0:00:04]} Be7 {[%emt 0:00:14]} 6. e3 {[%emt 0:00:09]} O-O {[%emt 0:00:46]} 7. Bd3 {[%emt 0:00:06]} c6 {[%emt 0:00:19]} 8. Qc2 {[%emt 0:00:12]} Nbd7 {[%emt 0:00:47]} 9. Nge2 {[%emt 0:00:12]} h6 {[%emt 0:00:26]} 10. Bh4 {[%emt 0:00:25]} Re8 {[%emt 0:09:33]} 11. O-O {[%emt 0:00:27]} Ne4 {[%emt 0:07:00]} 12. Bxe7 {[%emt 0:00:32]} Qxe7 {[%emt 0:00:08]} 13. Rae1 {[%emt 0:04:04]} Ndf6 {[%emt 0:04:00]} 14. Nd1 {[%emt 0:14:35]} Bd7 {[%emt 0:28:32]} 15. f3 {[%emt 0:01:21]} Nd6 {[%emt 0:01:02]} 16. Nec3 {[%emt 0:06:53]} Nh5 {[%emt 0:07:04]} 17. Qf2 {[%emt 0:14:25]} f5 {[%emt 0:11:52]} 18. g3 {[%emt 0:11:30]} Nf6 {[%emt 0:03:16]} 19. Qg2 {[%emt 0:08:10]} Qf7 {[%emt 0:02:40]} 20. b3 {[%emt 0:04:45]} Qh5 {[%emt 0:05:49]} 21. Nf2 {[%emt 0:00:15]} Re7 {[%emt 0:04:12]} 22. Re2 {[%emt 0:12:57]} Rc8 {[%emt 0:02:38]} 23. Rfe1 {[%emt 0:07:10]} c5 {[%emt 0:00:49]} 24. Ncd1 {[%emt 0:00:34]} c4 {[%emt 0:01:44]} 25. bxc4 {[%emt 0:01:20]} Nxc4 {[%emt 0:00:09]} 26. Bxc4 {[%emt 0:00:35]} Rxc4 {[%emt 0:00:10]} 27. Nd3 {[%emt 0:00:58]} Bb5 {[%emt 0:02:16]} 28. N1b2 {[%emt 0:03:28]} Rc3 {[%emt 0:00:19]} 29. Rd2 {[%emt 0:00:07]} Qe8 {[%emt 0:00:49]} 30. Ne5 {[%emt 0:00:34]} Nd7 {[%emt 0:00:58]} 31. f4 {[%emt 0:00:45]} Nf6 {[%emt 0:00:51]} 32. Nd1 {[%emt 0:01:40]} Rc1 {[%emt 0:02:24]} 33. Rc2 {[%emt 0:00:04]} Rb1 {[%emt 0:00:58]} 34. Rb2 {[%emt 0:00:39]} Rc1 {[%emt 0:00:20]} 35. Rc2 {[%emt 0:00:31]} Rc7 {[%emt 0:01:44]} 36. Rxc1 {[%emt 0:00:09]} Rxc1 {[%emt 0:00:07]} 37. Qb2 {[%emt 0:00:03]} Rc7 {[%emt 0:01:05]} 38. Nc3 {[%emt 0:00:33]} Ba6 {[%emt 0:00:36]} 39. Qb3 {[%emt 0:01:16]} Bc4 {[%emt 0:01:25]} 40. Qa3 {[%emt 0:00:00]} a6 {[%emt 0:00:00]} 41. Qd6 {[%emt 0:05:38]} Qe7 {[%emt 0:06:02]} 42. Qxe7 {[%emt 0:03:06]} Rxe7 {[%emt 0:00:02]} 43. a4 {[%emt 0:06:02]} Rc7 {[%emt 0:01:38]} 44. Rb1 {[%emt 0:00:16]} Bd3 {[%emt 0:05:36]} 45. Nxd5 {[%emt 0:11:32]} Nxd5 {[%emt 0:00:02]} 46. Nxd3 {[%emt 0:00:05]} Nxe3 {[%emt 0:00:50]} 47. Re1 {[%emt 0:01:01]} Nc2 {[%emt 0:00:27]} 48. Re8+ {[%emt 0:00:38]} Kf7 {[%emt 0:00:19]} 49. Rd8 {[%emt 0:00:37]} Ke7 {[%emt 0:01:21]} 50. Rd5 {[%emt 0:00:08]} Rd7 {[%emt 0:03:55]} 51. Re5+ {[%emt 0:01:24]} Kf6 {[%emt 0:00:58]} 52. d5 {[%emt 0:00:54]} Nd4 {[%emt 0:00:27]} 53. Kf2 {[%emt 0:00:22]} Re7 {[%emt 0:04:46]} 54. Ke3 {[%emt 0:02:01]} Nc2+ {[%emt 0:00:14]} 55. Kd2 {[%emt 0:01:46]} Nd4 {[%emt 0:00:01]} 56. Kc3 {[%emt 0:01:03]} Nf3 {[%emt 0:02:13]} 57. d6 {[%emt 0:01:09]} Rd7 {[%emt 0:00:51]} 58. Rd5 {[%emt 0:00:57]} Ke6 {[%emt 0:01:15]} 59. Kc4 {[%emt 0:00:31]} Nd2+ {[%emt 0:02:31]} 60. Kd4 {[%emt 0:00:09]} Nb3+ {[%emt 0:02:45]} 61. Kc4 {[%emt 0:04:23]} Nd2+ {[%emt 0:07:19]} 62. Kc5 {[%emt 0:00:30]} Ne4+ 63. Kd4 {[%emt 0:00:30]} Rxd6 {[%emt 0:01:00]} 1/2-1/2

[Event "5th Thessaloniki SKG Open-B 2024"]
[Site "Thessaloniki"]
[Date "2024.08.10"]
[Round "6.5"]
[White "Petkakis, Odysseas"]
[Black "Pantoglou, Dimitrios"]
[Result "0-1"]
[ECO "D35"]
[WhiteElo "1701"]
[BlackElo "1893"]
[Annotator "NA"]
[PlyCount "64"]
[EventDate "2024.08.05"]
[EventType "swiss"]
[EventCountry "GRE"]
[SourceTitle "playchess.com"]
[Source "ChessBase"]
[SourceQuality "1"]
[TimeControl "40/5400+30:1800+30"]

1. d4 {[%emt 1:31:00]} d5 {[%emt 0:06:39]} 2. c4 {[%emt 0:00:00]} e6 {[%emt 0:00:11]} 3. cxd5 {[%emt 0:00:00]} exd5 {[%emt 0:00:09]} 4. Nc3 {[%emt 0:00:00]} Nf6 {[%emt 0:00:18]} 5. Bg5 {[%emt 0:00:00]} Nbd7 {[%emt 0:00:18]} 6. e3 {[%emt 0:00:00]} c6 {[%emt 0:00:07]} 7. Bd3 {[%emt 0:00:00]} Be7 {[%emt 0:00:11]} 8. Nf3 {[%emt 0:00:00]} h6 {[%emt 0:00:09]} 9. Bf4 {[%emt 0:00:00]} Nh5 {[%emt 0:02:12]} 10. Bg3 {[%emt 0:00:00]} Nxg3 {[%emt 0:00:37]} 11. hxg3 {[%emt 0:00:00]} Nf6 {[%emt 0:00:51]} 12. Qb1 {[%emt 0:00:00]} Qb6 {[%emt 0:11:05]} 13. O-O {[%emt 0:00:00]} O-O {[%emt 0:03:02]} 14. a3 {[%emt 0:00:00]} a5 {[%emt 0:00:12]} 15. Na4 {[%emt 0:00:00]} Qc7 {[%emt 0:01:26]} 16. b4 {[%emt 0:00:00]} axb4 {[%emt 0:10:05]} 17. axb4 {[%emt 0:00:00]} b5 {[%emt 0:00:10]} 18. Nc5 {[%emt 0:00:00]} Bg4 {[%emt 0:03:02]} 19. Nd2 {[%emt 0:00:00]} Bxc5 {[%emt 0:15:30]} 20. dxc5 {[%emt 0:00:00]} Qe5 {[%emt 0:00:12]} 21. Nb3 {[%emt 0:00:00]} Qc3 {[%emt 0:03:41]} 22. Rxa8 {[%emt 0:00:00]} Rxa8 {[%emt 0:00:05]} 23. Na5 {[%emt 0:00:00]} Bd7 {[%emt 0:00:34]} 24. Rc1 {[%emt 0:00:00]} Qe5 {[%emt 0:00:11]} 25. Qa1 {[%emt 0:00:00]} Qh5 {[%emt 0:00:49]} 26. Qd4 {[%emt 0:00:00]} Ng4 {[%emt 0:00:21]} 27. Rc2 {[%emt 0:00:00]} Qh2+ {[%emt 0:04:23]} 28. Kf1 {[%emt 0:00:00]} Qh1+ {[%emt 0:00:39]} 29. Ke2 {[%emt 0:00:00]} Qxg2 {[%emt 0:00:10]} 30. Qf4 {[%emt 0:00:00]} Re8 {[%emt 0:07:39]} 31. Nxc6 {[%emt 0:00:00]} g5 {[%emt 0:03:42]} 32. Qf3 {[%emt 0:00:00]} Rxe3+ {[%emt 0:00:14]} 0-1

[Event "5th Thessaloniki SKG Open-B 2024"]
[Site "Thessaloniki"]
[Date "2024.08.10"]
[Round "6.6"]
[White "Vakalopoulos, Hristos"]
[Black "Yilmaz, Cagan Ata"]
[Result "1/2-1/2"]
[ECO "A25"]
[WhiteElo "1866"]
[BlackElo "1652"]
[Annotator "NA RC"]
[PlyCount "84"]
[EventDate "2024.08.05"]
[EventType "swiss"]
[EventCountry "GRE"]
[SourceTitle "playchess.com"]
[Source "ChessBase"]
[SourceQuality "1"]
[TimeControl "40/5400+30:1800+30"]

1. c4 {[%emt 0:02:55]} e5 {[%emt 0:00:04]} 2. Nc3 {[%emt 0:00:15]} f5 {[%emt 0:00:09]} 3. g3 {[%emt 0:03:02]} Nc6 {[%emt 0:00:12]} 4. Bg2 {[%emt 0:00:15]} Nf6 {[%emt 0:00:11]} 5. d3 {[%emt 0:01:15]} Bb4 {[%emt 0:00:10]} 6. Bd2 {[%emt 0:10:44]} O-O {[%emt 0:04:43]} 7. Nh3 {[%emt 0:04:55]} d6 {[%emt 0:03:13]} 8. Nd5 {[%emt 0:12:25]} Bxd2+ {[%emt 0:02:25]} 9. Qxd2 {[%emt 0:00:03]} Nxd5 {[%emt 0:05:02]} 10. cxd5 {[%emt 0:00:45]} Ne7 {[%emt 0:01:50]} 11. d4 {[%emt 0:10:17]} Ng6 {[%emt 0:03:42]} 12. f4 {[%emt 0:25:20]} e4 {[%emt 0:01:33]} 13. Qc3 {[%emt 0:03:41]} Bd7 {[%emt 0:02:20]} 14. Rc1 {[%emt 0:02:02]} Rc8 {[%emt 0:00:18]} 15. Qb3 {[%emt 0:00:41]} b6 {[%emt 0:06:47]} 16. O-O {[%emt 0:06:31]} h6 {[%emt 0:03:47]} 17. Rc3 {[%emt 0:00:40]} Ne7 {[%emt 0:04:10]} 18. Nf2 {[%emt 0:02:37]} Be8 {[%emt 0:00:32]} 19. Nd1 {[%emt 0:00:23]} Bf7 {[%emt 0:00:33]} 20. Ne3 {[%emt 0:02:44]} c6 {[%emt 0:00:35]} 21. Qa3 {[%emt 0:01:07]} Nxd5 {[%emt 0:00:43]} 22. Nxf5 {[%emt 0:01:33]} Nxc3 {[%emt 0:00:14]} 23. bxc3 {[%emt 0:00:02]} c5 {[%emt 0:01:53]} 24. Bxe4 {[%emt 0:04:07]} d5 {[%emt 0:01:10]} 25. Bd3 {[%emt 0:02:02]} Be6 {[%emt 0:01:29]} 26. Nh4 {[%emt 0:00:21]} Bh3 {[%emt 0:01:41]} 27. Rb1 {[%emt 0:01:37]} Qe7 {[%emt 0:54:34]} 28. Qc1 {[%emt 0:00:35]} Qc7 {[%emt 0:00:00]} 29. Qe3 {[%emt 0:00:47]} cxd4 {[%emt 0:00:00]} 30. cxd4 {[%emt 0:00:02]} Rfe8 {[%emt 0:00:00]} 31. Qf3 {[%emt 0:00:01]} Qd7 {[%emt 0:00:00]} 32. Ng6 {[%emt 0:00:07]} Bg4 {[%emt 0:00:00]} 33. Qg2 {[%emt 0:00:37]} Qe6 {[%emt 0:00:00]} 34. Ne5 {[%emt 0:00:07]} Bh5 {[%emt 0:00:00]} 35. Kf2 {[%emt 0:01:35]} Rc3 {[%emt 0:00:00]} 36. g4 {[%emt 0:01:16]} Bf7 {[%emt 0:00:00]} 37. h4 {[%emt 0:00:46]} Qf6 {[%emt 0:00:00]} 38. Kg3 {[%emt 0:00:32]} Rd8 {[%emt 0:00:00]} 39. h5 {[%emt 0:00:03]} Rdc8 {[%emt 0:00:00]} 40. Rf1 {[%emt 0:00:00]} Rc1 {[%emt 0:00:00]} 41. Qh1 {[%emt 0:12:52]} Rxf1 {[%emt 0:00:00]} 42. Qxf1 {[%emt 0:00:02]} Rc7 {[%emt 0:00:00]} 1/2-1/2

[Event "5th Thessaloniki SKG Open-B 2024"]
[Site "Thessaloniki"]
[Date "2024.08.10"]
[Round "6.7"]
[White "Mitsopoulos, Ioannis"]
[Black "Chalkias, Michail Panagiotis"]
[Result "0-1"]
[ECO "B30"]
[WhiteElo "1629"]
[BlackElo "1772"]
[Annotator "NA RC"]
[PlyCount "106"]
[EventDate "2024.08.05"]
[EventType "swiss"]
[EventCountry "GRE"]
[SourceTitle "playchess.com"]
[Source "ChessBase"]
[SourceQuality "1"]
[TimeControl "40/5400+30:1800+30"]

1. e4 {[%emt 0:00:03]} c5 {[%emt 1:31:00]} 2. Nf3 {[%emt 0:00:14]} Nc6 {[%emt 0:00:00]} 3. Bb5 {[%emt 0:00:11]} e6 {[%emt 0:00:00]} 4. O-O {[%emt 0:00:07]} Nge7 {[%emt 0:00:00]} 5. Re1 {[%emt 0:00:09]} a6 {[%emt 0:00:00]} 6. Bf1 {[%emt 0:00:05]} g6 {[%emt 0:00:00]} 7. c3 {[%emt 0:01:08]} e5 {[%emt 0:00:00]} 8. d4 {[%emt 0:01:27]} cxd4 {[%emt 0:00:00]} 9. cxd4 {[%emt 0:00:07]} exd4 {[%emt 0:00:00]} 10. Bf4 {[%emt 0:04:19]} Bg7 {[%emt 0:00:00]} 11. Nbd2 {[%emt 0:00:42]} O-O {[%emt 0:00:00]} 12. Nb3 {[%emt 0:03:02]} d5 {[%emt 0:00:00]} 13. e5 {[%emt 0:03:51]} Bg4 {[%emt 0:00:00]} 14. h3 {[%emt 0:09:29]} Bxf3 {[%emt 0:00:00]} 15. Qxf3 {[%emt 0:00:29]} Qb6 {[%emt 0:00:00]} 16. Rad1 {[%emt 0:04:33]} a5 {[%emt 0:00:00]} 17. a4 {[%emt 0:09:04]} Nf5 {[%emt 0:00:00]} 18. Bb5 {[%emt 0:04:24]} Nd8 {[%emt 0:00:00]} 19. g4 {[%emt 0:03:15]} Ne7 {[%emt 0:00:00]} 20. Nxd4 {[%emt 0:04:50]} Ne6 {[%emt 0:00:00]} 21. Be3 {[%emt 0:00:20]} Qc7 {[%emt 0:00:00]} 22. Bf4 {[%emt 0:14:46]} Nxf4 {[%emt 0:00:00]} 23. Qxf4 {[%emt 0:00:49]} Nc6 {[%emt 0:00:00]} 24. Bxc6 {[%emt 0:02:33]} bxc6 {[%emt 0:00:00]} 25. Rc1 {[%emt 0:01:25]} Ra6 {[%emt 0:00:00]} 26. Qg3 {[%emt 0:03:28]} Qb7 {[%emt 0:00:00]} 27. b3 {[%emt 0:00:48]} Re8 {[%emt 0:00:00]} 28. g5 {[%emt 0:02:29]} Rb6 {[%emt 0:00:00]} 29. f4 {[%emt 0:02:48]} Rb4 {[%emt 0:00:00]} 30. Qf2 {[%emt 0:08:55]} Rc8 {[%emt 0:00:00]} 31. Red1 {[%emt 0:09:04]} Qd7 {[%emt 0:00:00]} 32. Kg2 {[%emt 0:02:05]} c5 {[%emt 0:00:00]} 33. Qc2 {[%emt 0:02:00]} Bf8 {[%emt 0:00:00]} 34. Kg3 {[%emt 0:01:24]} Re8 {[%emt 0:00:00]} 35. Ne2 {[%emt 0:01:34]} Qb7 {[%emt 0:00:00]} 36. Rd3 {[%emt 0:01:05]} Rb8 {[%emt 0:00:00]} 37. Nc3 {[%emt 0:00:57]} Rxb3 {[%emt 0:00:00]} 38. Nb5 {[%emt 0:00:34]} Rxd3+ {[%emt 0:00:00]} 39. Qxd3 {[%emt 0:00:02]} d4 {[%emt 0:00:00]} 40. h4 {[%emt 0:00:00]} h5 {[%emt 0:00:00]} 41. gxh6 {[%emt 0:05:57]} Bxh6 {[%emt 0:00:00]} 42. Rxc5 {[%emt 0:01:26]} Qh1 {[%emt 0:00:00]} 43. Qxd4 {[%emt 0:07:42]} Qe1+ {[%emt 0:00:00]} 44. Kh3 {[%emt 0:02:21]} Qf1+ {[%emt 0:00:00]} 45. Kg3 {[%emt 0:00:42]} Bxf4+ {[%emt 0:00:00]} 46. Kg4 {[%emt 0:02:50]} Bh2 {[%emt 0:00:00]} 47. Qe4 {[%emt 0:07:18]} Qg1+ {[%emt 0:00:00]} 48. Kf3 {[%emt 0:00:14]} Qh1+ {[%emt 0:00:00]} 49. Ke3 {[%emt 0:00:09]} Bg1+ {[%emt 0:00:00]} 50. Kd3 {[%emt 0:00:23]} Qxe4+ {[%emt 0:00:00]} 51. Kxe4 {[%emt 0:00:07]} Bxc5 {[%emt 0:00:00]} 52. h5 {[%emt 0:00:54]} gxh5 {[%emt 0:00:00]} 53. e6 {[%emt 0:00:05]} fxe6 {[%emt 0:56:00]} 0-1

[Event "5th Thessaloniki SKG Open-B 2024"]
[Site "Thessaloniki"]
[Date "2024.08.11"]
[Round "7.1"]
[White "Polyzos, Vasileios"]
[Black "Avanesyan, Aleksandr"]
[Result "0-1"]
[ECO "B18"]
[WhiteElo "1700"]
[BlackElo "1700"]
[Annotator "NA RC"]
[PlyCount "112"]
[EventDate "2024.08.05"]
[EventType "swiss"]
[EventCountry "GRE"]
[SourceTitle "playchess.com"]
[Source "ChessBase"]
[SourceQuality "1"]
[TimeControl "40/5400+30:1800+30"]

1. e4 {[%emt 0:00:04]} c6 {[%emt 0:00:11]} 2. d4 {[%emt 0:00:11]} d5 {[%emt 0:00:05]} 3. Nc3 {[%emt 0:00:05]} dxe4 {[%emt 0:00:05]} 4. Nxe4 {[%emt 0:00:06]} Bf5 {[%emt 0:00:07]} 5. Ng3 {[%emt 0:00:10]} Bg6 {[%emt 0:00:07]} 6. N1e2 {[%emt 0:00:31]} Nf6 {[%emt 0:00:37]} 7. Nf4 {[%emt 0:01:38]} e5 {[%emt 0:00:16]} 8. Qe2 {[%emt 0:17:32]} Qxd4 {[%emt 0:06:52]} 9. c3 {[%emt 0:02:50]} Qd6 {[%emt 0:01:07]} 10. Nxg6 {[%emt 0:02:16]} hxg6 {[%emt 0:01:29]} 11. f4 {[%emt 0:04:37]} Nbd7 {[%emt 0:01:38]} 12. fxe5 {[%emt 0:17:55]} Qxe5 {[%emt 0:02:45]} 13. Qxe5+ {[%emt 0:00:32]} Nxe5 {[%emt 0:00:07]} 14. Bf4 {[%emt 0:00:51]} Bd6 {[%emt 0:01:38]} 15. O-O-O {[%emt 0:04:54]} Nd3+ {[%emt 0:01:15]} 16. Bxd3 {[%emt 0:00:16]} Bxf4+ {[%emt 0:00:08]} 17. Kc2 {[%emt 0:01:16]} Bxg3 {[%emt 0:02:30]} 18. hxg3 {[%emt 0:00:47]} O-O-O {[%emt 0:01:43]} 19. Rh4 {[%emt 0:43:29]} Rdf8 20. Rxh8 Rxh8 {[%emt 0:00:36]} 21. Bc4 {[%emt 0:00:00]} Rh2 {[%emt 0:05:17]} 22. Rg1 {[%emt 0:00:00]} Nd5 {[%emt 0:03:23]} 23. Kd3 {[%emt 0:00:00]} Rh5 {[%emt 0:03:44]} 24. Rf1 {[%emt 0:00:00]} f6 {[%emt 0:01:05]} 25. Bb3 {[%emt 0:00:00]} Re5 {[%emt 0:02:59]} 26. Kd2 {[%emt 0:00:00]} Kd7 {[%emt 0:02:57]} 27. c4 {[%emt 0:00:00]} Ne3 {[%emt 0:02:04]} 28. Rf3 {[%emt 0:00:00]} Nf5 {[%emt 0:00:48]} 29. Bc2 {[%emt 0:00:00]} Nd4 {[%emt 0:01:13]} 30. Rd3 {[%emt 0:00:00]} c5 {[%emt 0:00:25]} 31. Bd1 {[%emt 0:00:00]} Kd6 {[%emt 0:02:19]} 32. b4 {[%emt 0:00:00]} b6 {[%emt 0:02:31]} 33. Bf3 {[%emt 0:00:00]} Kc7 {[%emt 0:01:31]} 34. bxc5 {[%emt 0:00:00]} Nxf3+ {[%emt 0:00:26]} 35. gxf3 {[%emt 0:00:07]} Rxc5 {[%emt 0:00:07]} 36. Rc3 {[%emt 0:02:48]} Rg5 {[%emt 0:04:35]} 37. f4 {[%emt 0:01:37]} Ra5 {[%emt 0:00:17]} 38. a3 {[%emt 0:01:07]} g5 {[%emt 0:00:07]} 39. Ke3 {[%emt 0:03:11]} gxf4+ {[%emt 0:01:56]} 40. Kxf4 {[%emt 0:00:15]} Rc5 {[%emt 0:00:25]} 41. Re3 {[%emt 0:01:20]} Rxc4+ {[%emt 0:00:31]} 42. Kf5 {[%emt 0:00:31]} Rc5+ {[%emt 0:00:17]} 43. Ke6 {[%emt 0:01:41]} Re5+ {[%emt 0:03:13]} 44. Rxe5 {[%emt 0:00:23]} fxe5 {[%emt 0:00:01]} 45. Kxe5 {[%emt 0:00:07]} Kc6 {[%emt 0:00:56]} 46. Kf5 {[%emt 0:05:28]} b5 {[%emt 0:00:26]} 47. Kg6 {[%emt 0:00:04]} a5 {[%emt 0:00:11]} 48. Kxg7 {[%emt 0:00:06]} b4 {[%emt 0:00:09]} 49. axb4 {[%emt 0:00:08]} axb4 {[%emt 0:00:26]} 50. g4 {[%emt 0:00:10]} b3 {[%emt 0:00:03]} 51. g5 {[%emt 0:00:16]} b2 {[%emt 0:00:06]} 52. g6 {[%emt 0:00:41]} b1=Q {[%emt 0:00:07]} 53. Kh8 {[%emt 0:00:12]} Qh1+ {[%emt 0:00:23]} 54. Kg8 {[%emt 0:00:28]} Kd6 {[%emt 0:00:13]} 55. g7 {[%emt 0:01:18]} Ke6 {[%emt 0:00:10]} 56. Kf8 {[%emt 0:00:12]} Qa8# {[%emt 0:00:06]} 0-1

[Event "5th Thessaloniki SKG Open-B 2024"]
[Site "Thessaloniki"]
[Date "2024.08.11"]
[Round "7.2"]
[White "Ioannidis, Konstantinos I"]
[Black "Seretis, Nikolaos G"]
[Result "1/2-1/2"]
[ECO "A07"]
[WhiteElo "1683"]
[BlackElo "1675"]
[Annotator "NA RC"]
[PlyCount "72"]
[EventDate "2024.08.05"]
[EventType "swiss"]
[EventCountry "GRE"]
[SourceTitle "playchess.com"]
[Source "ChessBase"]
[SourceQuality "1"]
[TimeControl "40/5400+30:1800+30"]

1. Nf3 {[%emt 0:00:05]} Nf6 {[%emt 0:00:10]} 2. b3 {[%emt 0:00:09]} d5 {[%emt 0:00:25]} 3. Bb2 {[%emt 0:00:05]} Bf5 {[%emt 0:00:23]} 4. g3 {[%emt 0:00:06]} e6 {[%emt 0:00:38]} 5. Bg2 {[%emt 0:00:09]} Bc5 {[%emt 0:00:45]} 6. O-O {[%emt 0:00:09]} O-O {[%emt 0:00:08]} 7. d3 {[%emt 0:00:07]} h6 {[%emt 0:00:49]} 8. Nbd2 {[%emt 0:00:14]} Nbd7 {[%emt 0:00:24]} 9. Qe1 {[%emt 0:01:06]} Re8 {[%emt 0:02:16]} 10. e4 {[%emt 0:00:06]} dxe4 {[%emt 0:00:14]} 11. dxe4 {[%emt 0:00:06]} Bh7 {[%emt 0:00:29]} 12. Qe2 {[%emt 0:02:21]} Qe7 {[%emt 0:03:03]} 13. Rad1 {[%emt 0:06:09]} Rad8 {[%emt 0:00:48]} 14. Ne5 {[%emt 0:07:05]} Nxe5 {[%emt 0:06:37]} 15. Bxe5 {[%emt 0:01:00]} Bd4 {[%emt 0:00:41]} 16. Bxd4 {[%emt 0:00:53]} Rxd4 {[%emt 0:00:30]} 17. c3 {[%emt 0:00:09]} Rdd8 {[%emt 0:00:52]} 18. Nc4 {[%emt 0:01:27]} Qc5 {[%emt 0:02:00]} 19. a4 {[%emt 0:07:31]} a5 {[%emt 0:03:00]} 20. Rfe1 {[%emt 0:07:42]} Rxd1 {[%emt 0:08:01]} 21. Qxd1 {[%emt 0:15:23]} b5 {[%emt 0:03:04]} 22. axb5 {[%emt 0:00:04]} Qxb5 {[%emt 0:00:08]} 23. Bf1 {[%emt 0:02:46]} Rb8 {[%emt 0:04:53]} 24. Nd2 {[%emt 0:00:35]} Qc5 {[%emt 0:07:48]} 25. Re3 {[%emt 0:10:02]} Rd8 {[%emt 0:02:02]} 26. Qe2 {[%emt 0:00:59]} Bg6 {[%emt 0:05:18]} 27. Rd3 {[%emt 0:03:23]} Rxd3 {[%emt 0:09:25]} 28. Qxd3 {[%emt 0:00:07]} e5 {[%emt 0:04:00]} 29. Be2 {[%emt 0:06:29]} Qc6 {[%emt 0:02:41]} 30. f3 {[%emt 0:00:26]} h5 {[%emt 0:05:38]} 31. Nc4 {[%emt 0:03:07]} Qc5+ {[%emt 0:00:47]} 32. Qe3 {[%emt 0:00:05]} Qb5 {[%emt 0:03:16]} 33. Nd2 {[%emt 0:01:05]} Qc6 {[%emt 0:00:32]} 34. Nc4 {[%emt 0:00:16]} Qb5 {[%emt 0:00:12]} 35. Nd2 {[%emt 0:00:03]} Qc6 {[%emt 0:00:40]} 36. Nc4 {[%emt 0:00:32]} Qb5 {[%emt 0:00:28]} 1/2-1/2

[Event "5th Thessaloniki SKG Open-B 2024"]
[Site "Thessaloniki"]
[Date "2024.08.11"]
[Round "7.3"]
[White "Pantoglou, Dimitrios"]
[Black "Triantaphylidis, Alexandros I"]
[Result "1-0"]
[ECO "B12"]
[WhiteElo "1893"]
[BlackElo "1745"]
[Annotator "NA RC"]
[PlyCount "125"]
[EventDate "2024.08.05"]
[EventType "swiss"]
[EventCountry "GRE"]
[SourceTitle "playchess.com"]
[Source "ChessBase"]
[SourceQuality "1"]
[TimeControl "40/5400+30:1800+30"]

1. e4 {[%emt 0:02:41]} c6 {[%emt 0:00:09]} 2. d4 {[%emt 0:00:06]} d5 {[%emt 0:00:04]} 3. f3 {[%emt 0:00:41]} Qb6 {[%emt 0:00:41]} 4. Nc3 {[%emt 0:04:31]} dxe4 {[%emt 0:00:11]} 5. fxe4 {[%emt 0:00:16]} e5 {[%emt 0:00:06]} 6. Nf3 {[%emt 0:03:02] B12: Caro-Kann: Advance Variation.} exd4 {[%emt 0:00:08]} 7. Nxd4 {[%emt 0:02:57]} Bc5 {[%emt 0:01:45]} 8. Na4 {[%emt 0:02:16]} Qa5+ {[%emt 0:01:35]} 9. c3 {[%emt 0:00:09]} Be7 {[%emt 0:07:18] The old main line.} 10. b4 {[%emt 0:01:41]} Qe5 {[%emt 0:10:10]} 11. Bd3 {[%emt 0:01:19]} Nf6 {[%emt 0:19:07]} 12. O-O {[%emt 0:16:50]} Bg4 $146 {[%emt 0:05:50]} ({Predecessor:} 12... O-O 13. Bf4 Qh5 14. Qe1 Re8 15. h3 Nbd7 16. Nf5 Bf8 17. Rf3 Ne5 18. Bxe5 Rxe5 {½-½ Kaczmarczyk,D (2474)-Neuman,P (2386) Oberliga Baden 2122 2021 (7.3)}) 13. Qe1 {[%emt 0:07:15]} O-O {[%emt 0:11:15]} 14. h3 {[%emt 0:06:04]} Bd7 {[%emt 0:12:39]} 15. Nf5 {[%emt 0:26:09]} Bxf5 {[%emt 0:07:05]} 16. Rxf5 {[%emt 0:00:11]} Qe6 {[%emt 0:01:57]} 17. Nc5 {[%emt 0:08:48]} Bxc5+ {[%emt 0:00:31]} 18. Rxc5 {[%emt 0:00:13]} Nbd7 {[%emt 0:00:23]} 19. Rg5 {[%emt 0:08:10]} Ne5 {[%emt 0:04:20]} 20. Bc2 {[%emt 0:01:06]} Rad8 {[%emt 0:05:06]} 21. Be3 {[%emt 0:00:53]} h6 {[%emt 0:04:18]} 22. Bb3 {[%emt 0:01:42]} Nc4 {[%emt 0:02:10]} 23. Rc5 {[%emt 0:00:58]} b5 {[%emt 0:00:45]} 24. e5 {[%emt 0:01:58]} Nd7 {[%emt 0:01:37]} 25. Bxc4 {[%emt 0:00:54]} bxc4 {[%emt 0:00:01]} 26. Ra5 {[%emt 0:00:16]} Nxe5 {[%emt 0:00:39]} 27. Bxa7 {[%emt 0:00:37]} Rfe8 {[%emt 0:01:12]} 28. Qe2 {[%emt 0:01:47]} Rd3 {[%emt 0:01:09]} 29. Qc2 {[%emt 0:00:56]} Qg6 {[%emt 0:01:26]} 30. Kh1 {[%emt 0:00:30]} Qg3 {[%emt 0:01:10]} 31. Bf2 {[%emt 0:00:21]} Qf4 {[%emt 0:00:21]} 32. Qe2 {[%emt 0:00:41]} Rd2 {[%emt 0:00:32]} 33. Be3 {[%emt 0:00:07]} Rxe2 {[%emt 0:00:33]} 34. Bxf4 {[%emt 0:00:02]} Nd3 {[%emt 0:00:18]} 35. Bg3 {[%emt 0:01:09]} Rc2 {[%emt 0:00:27]} 36. Ra6 {[%emt 0:00:29]} Ree2 {[%emt 0:00:31]} 37. Rg1 {[%emt 0:00:26]} Rxc3 {[%emt 0:00:23]} 38. Rxc6 {[%emt 0:00:20]} Nxb4 {[%emt 0:00:20]} 39. Rc8+ {[%emt 0:00:20]} Kh7 {[%emt 0:00:10]} 40. Be1 {[%emt 0:00:00]} Nxa2 {[%emt 0:00:00]} 41. Bxc3 {[%emt 0:00:30]} Nxc3 {[%emt 0:01:41]} 42. Rxc4 {[%emt 0:00:10]} Ne4 {[%emt 0:06:18]} 43. Rb1 {[%emt 0:10:56]} Re3 {[%emt 0:02:51]} 44. Rc7 {[%emt 0:00:32]} Kg6 {[%emt 0:06:09]} 45. Rb6+ {[%emt 0:01:13]} f6 {[%emt 0:03:46]} 46. Rbb7 {[%emt 0:00:15]} Ng3+ {[%emt 0:01:25]} 47. Kh2 {[%emt 0:03:19]} Kf5 {[%emt 0:08:14]} 48. Rxg7 {[%emt 0:02:44]} Nf1+ {[%emt 0:02:18]} 49. Kg1 {[%emt 0:00:17]} Nd2 {[%emt 0:01:07]} 50. Rb5+ {[%emt 0:04:23]} Ke6 {[%emt 0:00:57]} 51. Rh7 {[%emt 0:01:25]} Re2 {[%emt 0:00:42]} 52. Rxh6 {[%emt 0:01:07]} Nc4 {[%emt 0:01:22]} 53. Rh8 {[%emt 0:04:13]} Kf7 {[%emt 0:00:28]} 54. Rb7+ {[%emt 0:00:27]} Kg6 {[%emt 0:00:25]} 55. Rg8+ {[%emt 0:01:40]} Kf5 {[%emt 0:00:44]} 56. h4 {[%emt 0:01:53]} Ne3 {[%emt 0:00:37]} 57. Rb5+ {[%emt 0:02:15]} Kf4 {[%emt 0:00:42]} 58. Rb4+ {[%emt 0:00:23]} Kf5 {[%emt 0:00:33]} 59. h5 {[%emt 0:00:14]} Nd1 {[%emt 0:00:35]} 60. h6 {[%emt 0:00:27]} (60. g4+ $142 Ke6 61. Re8+ Kd6 62. Rxe2 Kc5 63. Rb8 Nc3 64. Re1 Nd5 65. h6) 60... Re1+ {[%emt 0:00:12]} 61. Kh2 {[%emt 0:00:13]} Ne3 {[%emt 0:00:37]} 62. h7 {[%emt 0:01:55]} Nf1+ {[%emt 0:00:25]} 63. Kg1 {[%emt 0:00:06]} 1-0